bitfinex/quotes_SOLUSD_20251103
["timestamp","ask_amount","ask_price","bid_price","bid_amount"]
[1762209247125,1e-08,164.78,164.74,0.86216157]
[1762209247902,1e-08,164.78,164.75,21.24430955]
[1762209248211,0.69000001,164.78,164.75,21.24430955]
[1762209248399,1e-08,164.78,164.76,0.14216157]
[1762209248605,1e-08,164.78,164.77,20.73416157]
[1762209249005,1e-08,164.78,164.77,0.86216157]
[1762209249326,1e-08,164.78,164.76,20.592]
[1762209249903,1e-08,164.78,164.77,6.06906597]
[1762209251336,1e-08,164.78,164.77,6.93122754]
[1762209251711,1e-08,164.78,164.77,27.52322754]
[1762209252537,1e-08,164.78,164.77,26.80322754]
[1762209252830,1e-08,164.78,164.77,6.06906597]
[1762209253029,1e-08,164.78,164.77,6.21122754]
[1762209256332,1e-08,164.78,164.77,6.93122754]
[1762209256515,1e-08,164.78,164.77,6.21122754]
[1762209259834,1e-08,164.78,164.77,6.93122754]
[1762209260050,1e-08,164.78,164.77,6.21122754]
[1762209260517,1e-08,164.78,164.77,27.52322754]
[1762209263927,1e-08,164.78,164.77,121.02005523]
[1762209265443,1e-08,164.78,164.77,134.06005523]
[1762209266232,0.2,164.95,164.82,0.14216157]
[1762209266233,0.69,164.89,164.82,0.14216157]
[1762209266426,0.69,164.89,164.86,0.14216157]
[1762209267013,0.69,164.89,164.87,6.06538484]
[1762209268544,0.71,164.94,164.88,0.84216157]
[1762209268862,0.91,164.95,164.88,0.84216157]
[1762209269040,0.91,164.95,164.91,0.14216157]
[1762209269239,0.91,164.95,164.93,0.14216157]
[1762209269435,0.2,164.95,164.93,0.14216157]
[1762209269672,0.2,164.95,164.94,0.84216157]
[1762209270441,0.2,164.95,164.94,20.73416157]
[1762209271453,5.11354577,165.03,164.94,20.73416157]
[1762209271454,0.71,165.03,164.95,0.14216157]
[1762209271652,0.71,165.03,164.97,0.14216157]
[1762209272048,0.71,165.05,164.97,0.84216157]
[1762209273246,0.2,165.06,165.02,20.592]
[1762209273444,0.2,165.06,165.03,0.14216157]
[1762209273634,0.2,165.06,165.03,0.82216157]
[1762209273842,0.2,165.09,165.03,0.82216157]
[1762209274563,0.71,165.08,165.03,0.82216157]
[1762209274752,0.71,165.08,165.03,0.14216157]
[1762209275057,0.71,165.08,165.03,0.82216157]
[1762209275240,0.71,165.08,165.05,0.14216157]
[1762209276365,0.71,165.08,165.06,6.058403]
[1762209278640,0.2,165.09,165.06,21.20441051]
[1762209278975,0.2,165.09,165.08,20.592]
[1762209279644,0.2,165.09,165.08,21.272]
[1762209280150,0.2,165.09,165.08,20.592]
[1762209280349,0.2,165.09,165.08,27.329669]
[1762209280848,0.2,165.11,165.09,0.14216157]
[1762209281741,0.2,165.11,165.09,0.82216157]
[1762209281941,0.71,165.16,165.09,0.82216157]
[1762209282159,0.2,165.19,165.13,0.14216157]
[1762209282365,0.2,165.19,165.14,21.19413829]
[1762209282543,0.2,165.19,165.18,0.14216157]
[1762209283168,0.91,165.25,165.18,0.82216157]
[1762209283473,5.82354577,165.24,165.18,0.14216157]
[1762209283681,0.71,165.23,165.18,0.14216157]
[1762209283984,0.71,165.23,165.17,20.592]
[1762209284359,0.71,165.23,165.18,6.05400169]
[1762209284765,0.71,165.23,165.18,21.18900592]
[1762209285879,0.71,165.23,165.18,21.86900592]
[1762209286681,0.91,165.25,165.19,0.14216157]
[1762209286884,0.91,165.25,165.19,0.82216157]
[1762209287577,4.86298259,165.25,165.19,0.82216157]
[1762209287779,0.91,165.25,165.19,0.82216157]
[1762209287970,0.2,165.25,165.19,0.82216157]
[1762209288171,0.2,165.25,165.22,0.14216157]
[1762209288485,0.2,165.25,165.24,0.14216157]
[1762209288662,0.71,165.3,165.24,20.73416157]
[1762209288863,0.71,165.32,165.27,0.14216157]
[1762209289281,0.71,165.32,165.25,0.68]
[1762209289486,0.71,165.34,165.26,20.73416157]
[1762209289663,5.82354577,165.34,165.26,20.73416157]
[1762209289981,0.71,165.34,165.26,20.73416157]
[1762209290192,0.71,165.33,165.27,0.68]
[1762209290497,0.71,165.34,165.29,0.14216157]
[1762209290988,0.71,165.36,165.31,20.73416157]
[1762209292685,6.75757418,165.36,165.29,6.04977949]
[1762209292997,6.75757418,165.36,165.24,30.258312]
[1762209292998,7.84008717,165.34,165.27,0.14216157]
[1762209293163,0.71,165.34,165.29,0.14216157]
[1762209294587,0.71,165.34,165.3,6.04960677]
[1762209295086,0.71,165.34,165.31,0.14216157]
[1762209296572,0.71,165.34,165.33,0.14216157]
[1762209296770,13.88679968,165.38,165.33,0.14216157]
[1762209296979,0.71,165.36,165.33,0.14216157]
[1762209297690,0.71,165.38,165.33,0.14216157]
[1762209297886,0.71,165.38,165.33,0.82216157]
[1762209298089,0.71,165.38,165.36,0.14216157]
[1762209298465,0.2,165.49,165.36,0.82216157]
[1762209298667,0.71,165.45,165.39,21.16210169]
[1762209298871,0.71,165.45,165.4,0.14216157]
[1762209299194,6.7542291,165.45,165.37,20.592]
[1762209299400,7.84008717,165.38,165.22,6.05253601]
[1762209299563,7.84008717,165.37,165.27,0.68]
[1762209299770,0.71,165.36,165.29,20.592]
[1762209300005,0.71,165.36,165.3,0.14216157]
[1762209300479,8.55008717,165.36,165.29,0.68]
[1762209300695,14.59762799,165.36,165.31,0.14216157]
[1762209300871,0.71,165.35,165.29,6.72989836]
[1762209301194,0.71,165.35,165.29,21.85483029]
[1762209301393,0.71,165.38,165.31,0.14216157]
[1762209301572,0.71,165.38,165.31,0.82216157]
[1762209302190,0.71,165.38,165.33,0.14216157]
[1762209302694,7.84008717,165.37,165.33,6.19040266]
[1762209303206,8.55008717,165.36,165.31,6.04889943]
[1762209303411,7.84008717,165.35,165.31,6.04889943]
[1762209303694,8.55008717,165.35,165.31,6.04889943]
[1762209303895,0.71,165.34,165.25,0.69]
[1762209304197,7.84008717,165.33,165.26,21.282]
[1762209304495,8.55008717,165.33,165.26,21.282]
[1762209304673,7.84008717,165.32,165.26,21.282]
[1762209304880,0.71,165.33,165.27,27.3327049]
[1762209305080,0.71,165.33,165.27,42.45946716]
[1762209305282,0.71,165.33,165.28,0.14216157]
[1762209306372,6.75859433,165.33,165.28,0.14216157]
[1762209306588,6.75859433,165.33,165.27,20.592]
[1762209306589,7.84008717,165.32,165.27,20.592]
[1762209306802,7.84008717,165.32,165.27,26.64253776]
[1762209306803,0.71,165.32,165.27,26.64253776]
[1762209306984,0.71,165.31,165.27,26.64253776]
[1762209307179,0.71,165.31,165.27,0.14216157]
[1762209308995,0.71,165.31,165.28,6.05033881]
[1762209309995,0.71,165.31,165.27,6.05060288]
[1762209310194,0.71,165.31,165.26,0.14216157]
[1762209310387,6.75946542,165.31,165.24,20.592]
[1762209310586,7.84008717,165.27,165.25,20.592]
[1762209310891,7.84008717,165.27,165.21,6.05290236]
[1762209311085,7.84008717,165.24,165.09,4.83415898]
[1762209311398,7.84008717,165.22,165.15,0.69]
[1762209311699,0.71,165.26,165.15,0.69]
[1762209311700,7.84008717,165.21,165.15,0.69]
[1762209312098,8.55008717,165.21,165.16,0.14216157]
[1762209312300,7.84008717,165.19,165.09,21.20055726]
[1762209312487,7.84008717,165.19,165.13,0.14216157]
[1762209312798,0.71,165.2,165.16,20.592]
[1762209313101,0.71,165.2,165.17,0.14216157]
[1762209313606,3.96287291,165.19,165.16,20.592]
[1762209313805,14.60336113,165.2,165.16,20.592]
[1762209314105,7.84008717,165.18,165.12,6.05610843]
[1762209314300,3.96296742,165.17,165.12,6.05610843]
[1762209314489,3.96296742,165.16,165.1,15.1423137]
[1762209314817,10.72806961,165.15,165.09,6.05730207]
[1762209314995,3.96296742,165.14,165.09,26.64930207]
[1762209315196,3.9713182,165.13,165.09,26.64930207]
[1762209315396,0.71,165.12,165.11,20.592]
[1762209315892,0.71,165.12,165.1,20.592]
[1762209316091,0.71,165.14,165.1,20.592]
[1762209316293,3.97542185,165.13,165.11,0.14216157]
[1762209316605,3.97542185,165.12,165.11,20.73416157]
[1762209316806,5.67388978,165.17,165.13,6.05583479]
[1762209316993,3.97555542,165.16,165.13,6.05583479]
[1762209317190,3.97555542,165.15,165.13,6.05583479]
[1762209317409,3.97555542,165.14,165.13,6.05583479]
[1762209318310,3.97555542,165.14,165.12,21.19651337]
[1762209318486,3.97555542,165.13,165.12,26.79036312]
[1762209318689,3.97555542,165.13,165.12,20.73416157]
[1762209319009,3.97555542,165.13,165.08,0.1]
[1762209319206,4.68555542,165.12,165.09,26.64930125]
[1762209319383,3.97555542,165.11,165.1,0.14216157]
[1762209319586,4.96388978,165.16,165.1,0.83216157]
[1762209319788,3.98058095,165.15,165.1,0.83216157]
[1762209320088,4.96388978,165.19,165.1,0.83216157]
[1762209320296,3.98045212,165.18,165.12,0.14216157]
[1762209320591,3.98045212,165.17,165.12,0.14216157]
[1762209320785,0.71,165.2,165.14,0.14216157]
[1762209320786,3.98045212,165.16,165.14,0.14216157]
[1762209320989,11.82142114,165.15,165.12,0.14216157]
[1762209321197,3.98133397,165.14,165.12,0.14216157]
[1762209321516,7.84008717,165.16,165.11,26.64856834]
[1762209321517,3.98133397,165.13,165.11,26.64856834]
[1762209321694,3.98133397,165.12,165.11,26.64856834]
[1762209322407,4.69133397,165.12,165.09,0.14216157]
[1762209322606,0.71,165.12,165.09,0.14216157]
[1762209322816,4.69155775,165.11,165.08,6.15765526]
[1762209323008,0.71,165.11,165.08,6.15765526]
[1762209323519,0.71,165.11,165.08,0.1]
[1762209323722,17.62891486,165.09,165.08,0.1]
[1762209323939,21.61131165,165.09,165.08,0.1]
[1762209324131,21.61131165,165.09,165.0,0.14216157]
[1762209324132,22.32131165,165.09,165.0,0.14216157]
[1762209324295,7.84008717,165.05,165.0,6.06057725]
[1762209324504,7.84008717,165.03,165.0,6.06057725]
[1762209324703,3.98106001,165.07,165.01,0.69]
[1762209324923,0.71,165.09,165.02,0.14216157]
[1762209325217,3.97989653,165.08,165.03,20.592]
[1762209325417,8.55008717,165.09,165.03,20.592]
[1762209325622,4.68533338,165.08,165.03,20.592]
[1762209325821,0.71,165.08,165.03,20.592]
[1762209326118,0.71,165.08,165.03,21.282]
[1762209326298,0.71,165.08,165.04,6.05913717]
[1762209326620,0.71,165.11,165.05,0.14216157]
[1762209326820,4.68346505,165.12,165.05,0.83216157]
[1762209327028,0.71,165.12,165.05,0.83216157]
[1762209327329,0.71,165.12,165.08,0.14216157]
[1762209328400,15.13483699,165.19,165.08,0.14216157]
[1762209328401,7.84008717,165.18,165.1,0.14216157]
[1762209328648,7.84008717,165.16,165.1,0.14216157]
[1762209328943,0.68,165.17,165.1,0.14216157]
[1762209329243,0.68,165.16,165.1,0.14216157]
[1762209330342,0.68,165.16,165.11,6.05656834]
[1762209330548,23.68298952,165.18,165.11,6.05656834]
[1762209330549,0.68,165.2,165.14,20.592]
[1762209331152,8.52008717,165.2,165.14,20.592]
[1762209331629,17.62891486,165.18,165.11,6.05656834]
[1762209331831,7.84008717,165.17,165.11,20.592]
[1762209332148,8.52008717,165.17,165.11,20.592]
[1762209332342,7.84008717,165.15,165.1,6.05681802]
[1762209332722,0.7,165.14,165.1,6.05681802]
[1762209332918,0.7,165.14,165.09,6.05721726]
[1762209333124,0.7,165.14,165.03,18.20554055]
[1762209333125,7.84008717,165.12,165.07,6.05791306]
[1762209333420,0.7,165.14,165.07,21.20300302]
[1762209333624,0.7,165.13,165.07,21.20300302]
[1762209334024,9.78882769,165.16,165.08,0.67]
[1762209334222,0.7,165.15,165.08,0.67]
[1762209334424,8.54008717,165.15,165.09,6.05730207]
[1762209334728,7.84008717,165.14,165.09,6.05730207]
[1762209334959,8.54008717,165.14,165.09,6.05730207]
[1762209335158,0.7,165.13,165.09,6.05730207]
[1762209335750,0.7,165.13,165.09,21.20055726]
[1762209338651,10.48882769,165.17,165.1,0.67]
[1762209338826,0.7,165.17,165.1,0.67]
[1762209339021,0.7,165.16,165.1,0.67]
[1762209339644,0.7,165.16,165.1,0.14216157]
[1762209340259,8.56077125,165.16,165.1,0.14216157]
[1762209340630,0.7,165.15,165.11,6.05656834]
[1762209341551,0.7,165.15,165.11,21.19798921]
[1762209342643,15.13098221,165.23,165.12,21.40416157]
[1762209342946,0.7,165.16,165.12,20.73416157]
[1762209343334,0.7,165.16,165.12,0.14216157]
[1762209344640,8.56077125,165.16,165.11,41.78998921]
[1762209345144,0.7,165.15,165.11,41.78998921]
[1762209345630,7.86077125,165.17,165.11,41.78998921]
[1762209345631,7.86077125,165.18,165.12,0.67]
[1762209345834,7.86077125,165.17,165.11,41.78998921]
[1762209346022,8.56077125,165.17,165.11,41.78998921]
[1762209346734,0.7,165.16,165.11,41.78998921]
[1762209346940,8.56077125,165.16,165.11,41.78998921]
[1762209347553,0.7,165.15,165.11,41.78998921]
[1762209347947,7.86077125,165.12,165.08,6.05748506]
[1762209348152,7.86077125,165.13,165.08,6.05748506]
[1762209348356,0.7,165.13,165.08,6.05748506]
[1762209348532,9.78882769,165.16,165.08,21.87165758]
[1762209348847,12.54246842,165.17,165.11,20.592]
[1762209349152,4.68169717,165.16,165.11,20.592]
[1762209349449,3.98169717,165.15,165.1,0.14216157]
[1762209349636,4.68169717,165.15,165.1,0.14216157]
[1762209349842,0.7,165.14,165.1,0.14216157]
[1762209350948,0.7,165.14,165.11,6.05656834]
[1762209352036,3.9921722,165.15,165.11,21.19798921]
[1762209352230,3.99690686,165.17,165.13,20.592]
[1762209352551,10.05030127,165.29,165.15,0.14216157]
[1762209352552,8.56077125,165.24,165.15,0.14216157]
[1762209352739,3.99837749,165.23,165.15,0.14216157]
[1762209352943,8.56077125,165.24,165.18,21.18900592]
[1762209353251,0.7,165.24,165.18,21.18900592]
[1762209353546,4.69817941,165.24,165.18,21.18900592]
[1762209353850,0.7,165.24,165.18,21.18900592]
[1762209354026,4.69817941,165.24,165.18,21.18900592]
[1762209354229,0.7,165.24,165.18,21.18900592]
[1762209354425,0.7,165.23,165.18,21.18900592]
[1762209355234,0.7,165.23,165.18,21.85900592]
[1762209360855,4.01119022,165.25,165.19,0.81216157]
[1762209361070,20.592,165.29,165.21,20.592]
[1762209361071,0.7,165.26,165.21,20.592]
[1762209361740,0.7,165.26,165.22,6.05253601]
[1762209362959,0.7,165.26,165.22,21.18387604]
[1762209363142,0.7,165.26,165.22,21.87387604]
[1762209363657,0.7,165.26,165.19,20.73416157]
[1762209363658,21.272,165.29,165.23,0.69]
[1762209363839,0.68,165.31,165.24,0.14216157]
[1762209364160,0.68,165.3,165.24,0.14216157]
[1762209364342,0.68,165.3,165.25,0.69]
[1762209365866,0.68,165.3,165.26,21.17874862]
[1762209366241,0.2,165.33,165.27,0.14216157]
[1762209366556,0.68,165.32,165.27,0.83216157]
[1762209366960,0.2,165.33,165.27,0.83216157]
[1762209367557,0.2,165.33,165.29,20.592]
[1762209367761,0.2,165.33,165.31,6.04924082]
[1762209368062,0.2,165.33,165.32,0.83216157]
[1762209368952,1e-08,165.33,165.32,21.42416157]
[1762209369542,0.68,165.42,165.32,21.42416157]
[1762209369749,0.68,165.42,165.36,6.0474117]
[1762209369973,0.68,165.42,165.36,6.7374117]
[1762209370149,0.68,165.42,165.37,0.14216157]
[1762209371564,0.68,165.42,165.37,0.83216157]
[1762209371742,0.68,165.42,165.38,6.04668037]
[1762209373857,5.08934655,165.4,165.32,0.14216157]
[1762209374050,0.68,165.39,165.33,0.69]
[1762209374766,5.08934655,165.37,165.3,6.04960677]
[1762209375256,5.76934655,165.36,165.3,6.73960677]
[1762209375880,11.81703687,165.36,165.31,0.69]
[1762209376056,0.68,165.35,165.29,15.81474166]
[1762209376247,0.68,165.35,165.29,15.12474166]
[1762209376975,0.68,165.35,165.27,26.64261169]
[1762209376976,5.08934655,165.33,165.27,26.64261169]
[1762209377177,5.08934655,165.33,165.27,6.05061169]
[1762209377361,3.97444595,165.35,165.24,0.14216157]
[1762209377544,5.08934655,165.29,165.22,0.69]
[1762209377749,5.08934655,165.29,165.2,20.592]
[1762209378065,0.68,165.28,165.21,21.18515827]
[1762209378270,0.68,165.28,165.21,21.87515827]
[1762209378558,0.68,165.28,165.22,0.69]
[1762209379075,0.68,165.28,165.21,41.77715827]
[1762209379668,0.68,165.28,165.21,42.46715827]
[1762209380049,6.73040434,165.28,165.21,42.46715827]
[1762209380562,6.73040434,165.28,165.22,0.69]
[1762209381145,0.68,165.28,165.22,0.69]
[1762209381967,68.27,165.42,165.22,0.69]
[1762209381968,20.592,165.35,165.24,0.14216157]
[1762209382156,0.68,165.31,165.24,0.14216157]
[1762209382352,0.68,165.31,165.24,0.83216157]
[1762209382570,4.66247747,165.34,165.24,0.83216157]
[1762209382872,21.272,165.33,165.24,0.83216157]
[1762209383267,0.68,165.36,165.27,0.14216157]
[1762209383465,0.68,165.39,165.27,20.73416157]
[1762209383661,0.68,165.39,165.23,81.70429097]
[1762209383662,0.68,165.39,165.32,0.14216157]
[1762209383976,0.68,165.39,165.33,21.16978164]
[1762209384185,6.24495657,165.43,165.34,0.14216157]
[1762209384349,0.68,165.41,165.34,0.14216157]
[1762209384554,0.68,165.41,165.36,0.14216157]
[1762209384758,4.86840131,165.43,165.36,20.73416157]
[1762209384964,0.88,165.43,165.38,0.14216157]
[1762209385164,0.68,165.42,165.38,0.14216157]
[1762209385562,0.2,165.43,165.4,0.14216157]
[1762209385765,0.2,165.43,165.37,20.592]
[1762209385964,0.68,165.42,165.39,6.04631477]
[1762209386653,0.2,165.43,165.39,21.16210169]
[1762209387267,0.2,165.43,165.39,21.85210169]
[1762209388662,0.2,165.43,165.4,6.04588326]
[1762209388868,0.65,165.42,165.38,0.14216157]
[1762209389055,0.2,165.43,165.38,0.14216157]
[1762209389259,0.2,165.43,165.4,0.14216157]
[1762209389587,0.2,165.49,165.42,0.14216157]
[1762209390078,0.2,165.49,165.46,0.14216157]
[1762209390483,0.2,165.49,165.46,0.84216157]
[1762209391089,0.2,165.49,165.47,6.04339155]
[1762209391261,0.2,165.49,165.46,6.8858415]
[1762209392179,0.2,165.49,165.46,21.99523349]
[1762209392682,0.2,165.49,165.46,6.8858415]
[1762209392863,0.2,165.49,165.48,6.18518791]
[1762209393064,0.2,165.49,165.48,6.90518791]
[1762209393695,1e-08,165.5,165.49,10.65098926]
[1762209393866,1e-08,165.5,165.49,0.86216157]
[1762209394997,1e-08,165.5,165.49,27.49682275]
[1762209395281,0.2,165.56,165.54,0.14216157]
[1762209395664,0.2,165.56,165.55,0.86216157]
[1762209396289,0.2,165.57,165.55,0.86216157]
[1762209396493,3.97831055,165.67,165.6,9.78882769]
[1762209396794,0.2,165.69,165.63,20.592]
[1762209396991,0.2,165.69,165.64,6.03718908]
[1762209397196,0.2,165.69,165.65,0.14216157]
[1762209397597,0.2,165.69,165.65,0.86216157]
[1762209398271,0.2,165.69,165.68,0.14216157]
[1762209398571,0.2,165.74,165.68,0.86216157]
[1762209398777,0.2,165.74,165.72,20.592]
[1762209398979,0.2,165.74,165.73,6.17607214]
[1762209399188,0.2,165.74,165.73,6.89607214]
[1762209399387,0.2,165.74,165.73,21.45416157]
[1762209399693,0.2,165.74,165.72,0.14216157]
[1762209399870,0.2,165.74,165.71,20.592]
[1762209400072,0.2,165.74,165.7,6.03499729]
[1762209400073,0.9,165.74,165.7,0.14216157]
[1762209400400,0.7,165.73,165.69,20.592]
[1762209400788,0.2,165.74,165.7,0.14216157]
[1762209400988,0.9,165.74,165.71,6.03463882]
[1762209401286,0.2,165.74,165.72,0.14216157]
[1762209401492,0.7,165.73,165.69,26.62720089]
[1762209401796,0.2,165.74,165.7,0.14216157]
[1762209401980,0.9,165.74,165.7,0.14216157]
[1762209402998,5.78934655,165.73,165.63,15.09303813]
[1762209403296,0.7,165.73,165.66,20.592]
[1762209403591,0.7,165.72,165.66,20.592]
[1762209404206,0.7,165.72,165.67,0.14216157]
[1762209404379,0.7,165.72,165.67,20.73416157]
[1762209404689,0.7,165.72,165.67,21.45416157]
[1762209405208,0.2,165.74,165.69,0.14216157]
[1762209405404,0.2,165.74,165.72,0.14216157]
[1762209405783,0.2,165.74,165.72,0.86216157]
[1762209406390,0.2,165.74,165.72,0.14216157]
[1762209406993,0.2,165.74,165.72,6.17609803]
[1762209407301,0.2,165.74,165.72,6.89609803]
[1762209407720,0.2,165.74,165.73,0.86216157]
[1762209408090,1e-08,165.74,165.73,10.65098926]
[1762209408705,0.2,165.85,165.78,0.14216157]
[1762209409002,0.9,165.85,165.79,6.03172688]
[1762209409180,0.7,165.84,165.8,0.14216157]
[1762209410011,0.7,165.84,165.78,20.592]
[1762209410615,0.7,165.84,165.79,0.14216157]
[1762209411194,0.2,165.85,165.79,6.89367229]
[1762209411401,0.7,165.84,165.79,6.17367229]
[1762209412586,0.7,165.84,165.79,0.14216157]
[1762209412990,0.7,165.84,165.78,20.592]
[1762209413191,6.72991805,165.84,165.76,20.592]
[1762209413403,6.72991805,165.84,165.77,0.14216157]
[1762209413614,0.7,165.83,165.77,0.14216157]
[1762209414792,0.7,165.83,165.76,0.14216157]
[1762209415200,6.03063562,165.82,165.76,26.76674687]
[1762209415401,6.03063562,165.82,165.76,20.73416157]
[1762209415598,6.73063562,165.82,165.76,20.73416157]
[1762209415894,6.73063562,165.82,165.65,1.99999999]
[1762209415895,20.592,165.79,165.61,30.19141356]
[1762209416096,9.78882769,165.77,165.67,6.03609585]
[1762209416311,20.592,165.75,165.66,0.72]
[1762209416527,20.592,165.75,165.67,0.14216157]
[1762209416821,0.7,165.74,165.66,20.592]
[1762209417321,21.11868701,165.73,165.64,6.03688221]
[1762209417519,21.11868701,165.73,165.6,0.72]
[1762209417520,9.78882769,165.72,165.6,0.72]
[1762209417739,0.7,165.71,165.61,0.14216157]
[1762209417916,9.78882769,165.7,165.58,10.50882769]
[1762209418216,0.7,165.71,165.62,20.592]
[1762209418392,6.03536725,165.69,165.63,6.03755358]
[1762209418816,0.7,165.68,165.63,6.03755358]
[1762209419218,0.7,165.68,165.62,20.592]
[1762209419395,0.7,165.68,165.6,21.312]
[1762209419596,0.7,165.68,165.56,18.86607591]
[1762209419911,0.7,165.68,165.59,0.14216157]
[1762209420316,9.78882769,165.67,165.57,0.72]
[1762209420502,6.03646021,165.66,165.57,0.72]
[1762209420702,21.82761075,165.66,165.54,21.14252772]
[1762209421018,20.592,165.64,165.55,0.72]
[1762209421194,20.592,165.64,165.56,0.14216157]
[1762209421396,0.7,165.63,165.55,0.72]
[1762209421697,0.7,165.66,165.57,20.592]
[1762209421910,0.7,165.66,165.6,0.14216157]
[1762209422217,0.7,165.66,165.6,0.86216157]
[1762209422431,20.592,165.68,165.61,6.03828271]
[1762209422628,0.66,165.67,165.62,0.14216157]
[1762209424528,0.66,165.67,165.62,6.03785833]
[1762209425328,6.69617802,165.67,165.61,26.77236931]
[1762209425542,6.69617802,165.67,165.61,0.14216157]
[1762209425707,0.66,165.66,165.61,0.14216157]
[1762209426099,0.66,165.7,165.63,20.73416157]
[1762209426605,0.66,165.7,165.65,0.14216157]
[1762209427000,6.69508385,165.7,165.65,0.14216157]
[1762209427531,0.66,165.69,165.65,0.14216157]
[1762209428022,0.66,165.69,165.65,6.1789701]
[1762209429823,6.69537808,165.69,165.64,6.17933193]
[1762209430027,0.66,165.69,165.64,21.27230464]
[1762209430229,0.66,165.71,165.64,21.27230464]
[1762209430407,3.95359828,165.71,165.67,20.592]
[1762209430612,5.56382663,165.74,165.67,20.592]
[1762209430613,3.95359828,165.73,165.68,0.14216157]
[1762209430809,4.61359828,165.73,165.68,0.14216157]
[1762209431011,0.66,165.75,165.69,0.71]
[1762209431215,0.66,165.75,165.7,0.14216157]
[1762209431216,3.95359828,165.74,165.7,0.14216157]
[1762209431608,4.61359828,165.74,165.7,0.14216157]
[1762209431926,3.95359828,165.77,165.7,0.14216157]
[1762209432106,0.66,165.74,165.7,6.17683141]
[1762209432303,3.95359828,165.73,165.7,6.17683141]
[1762209432508,0.66,165.76,165.7,6.88683141]
[1762209432711,3.9824256,165.75,165.7,6.88683141]
[1762209433027,4.6424256,165.74,165.7,6.17683141]
[1762209433220,3.9824256,165.73,165.69,20.592]
[1762209433422,3.9824256,165.72,165.69,20.592]
[1762209433614,3.9824256,165.71,165.69,20.592]
[1762209433822,3.9824256,165.7,165.68,20.592]
[1762209434019,11.59741808,165.74,165.69,6.03536725]
[1762209434223,3.98726432,165.73,165.69,6.03536725]
[1762209434528,3.98726432,165.72,165.69,6.03536725]
[1762209434722,3.98726432,165.71,165.69,6.03536725]
[1762209434911,3.98726432,165.7,165.69,6.03536725]
[1762209435112,4.90382663,165.75,165.69,21.26594695]
[1762209435338,3.99583027,165.74,165.69,21.26594695]
[1762209435546,3.99583027,165.73,165.69,21.26594695]
[1762209435837,4.90382663,165.8,165.73,0.14216157]
[1762209436013,5.56382663,165.81,165.76,6.03281853]
[1762209436416,0.66,165.8,165.76,6.03281853]
[1762209436611,0.66,165.8,165.75,6.1752658]
[1762209436834,5.56382663,165.8,165.75,6.1752658]
[1762209437241,4.90382663,165.8,165.75,6.1752658]
[1762209437627,0.66,165.79,165.75,21.25822205]
[1762209437943,4.90382663,165.81,165.75,21.25822205]
[1762209438128,5.56382663,165.81,165.75,21.25822205]
[1762209438313,4.90382663,165.82,165.77,0.14216157]
[1762209438519,4.90382663,165.82,165.79,0.14216157]
[1762209438718,5.56382663,165.84,165.79,0.14216157]
[1762209439138,0.66,165.83,165.79,0.14216157]
[1762209439638,0.2,165.85,165.79,0.85216157]
[1762209440041,0.2,165.85,165.81,0.14216157]
[1762209440438,0.2,165.85,165.81,0.85216157]
[1762209440835,0.2,165.85,165.81,0.14216157]
[1762209441030,0.86,165.85,165.81,0.14216157]
[1762209441347,6.88967045,165.85,165.79,20.592]
[1762209441541,0.66,165.84,165.79,20.592]
[1762209442038,0.66,165.84,165.76,6.74281853]
[1762209442039,0.2,165.85,165.8,6.03136308]
[1762209442232,0.2,165.85,165.81,0.14216157]
[1762209442423,0.2,165.85,165.81,0.85216157]
[1762209443843,0.66,165.84,165.8,6.03136308]
[1762209444051,0.66,165.84,165.77,0.71]
[1762209444342,0.2,165.85,165.79,0.14216157]
[1762209444725,0.2,165.85,165.79,0.85216157]
[1762209445238,0.86,165.85,165.79,0.85216157]
[1762209446156,0.86,165.85,165.81,0.14216157]